fUST/lending_fUST_20250817
["ID","MTS","AMOUNT","RATE_DAILY","PERIOD"]
[379906439,1755436249295,-2003.35,0.0002,2]
[379906441,1755436249304,-900.76,0.0002,2]
[379906443,1755436249314,-545.61,0.0002,2]
[379906445,1755436249323,-946.28,0.0002,2]
[379906447,1755436249333,-1171.95,0.0002,2]
[379906449,1755436249343,-500.0,0.0002,2]
[379906451,1755436249352,-480.0,0.0002,2]
[379906453,1755436249362,-480.0,0.0002,2]
[379906455,1755436249371,-480.0,0.0002,2]
[379906457,1755436249381,-480.0,0.0002,2]
[379906459,1755436249390,-751.58,0.0002,2]
[379906461,1755436249399,-724.39,0.0002,2]
[379906463,1755436249408,-480.0,0.0002,2]
[379906465,1755436249417,-480.0,0.0002,2]
[379906467,1755436249427,-480.0,0.0002,2]
[379906469,1755436249436,-500.0,0.0002,2]
[379906471,1755436249445,-480.0,0.0002,2]
[379906473,1755436249455,-480.0,0.0002,2]
[379906475,1755436249463,-486.77,0.0002,2]
[379906477,1755436249473,-480.0,0.0002,2]
[379906479,1755436249482,-501.29,0.0002,2]
[379906481,1755436249492,-1502.47,0.0002,2]
[379906483,1755436249501,-659.57,0.0002,2]
[379906485,1755436249511,-480.0,0.0002,2]
[379906498,1755436249621,-480.0,0.0002,2]
[379906500,1755436249632,-651.23,0.0002,2]
[379906502,1755436249641,-3295.42,0.0002,2]
[379906504,1755436249651,-480.0,0.0002,2]
[379906505,1755436249660,-480.0,0.0002,2]
[379906507,1755436249670,-480.0,0.0002,2]
[379906509,1755436249679,-555.51,0.0002,2]
[379906510,1755436249688,-1043.65,0.0002,2]
[379906511,1755436249697,-548.61,0.0002,2]
[379906512,1755436249706,-168.0,0.00020012,2]
[379906513,1755436249715,-420.5,0.00020038,2]
[379906514,1755436249725,-168.0,0.0002004,2]
[379906515,1755436249734,-382.9971668,0.0002007,2]
[379906516,1755436249743,-293.7943279,0.0002007,2]
[379906517,1755436249755,-293.7943279,0.0002007,2]
[379906518,1755436249764,-293.7943279,0.0002007,2]
[379906519,1755436249774,-293.5424109,0.0002007,2]
[379906521,1755436249783,-293.7943279,0.0002007,2]
[379906523,1755436249792,-293.7943279,0.0002007,2]
[379906525,1755436249801,-293.7943279,0.0002007,2]
[379906527,1755436249811,-293.7943279,0.0002007,2]
[379906529,1755436249823,-293.7943279,0.0002007,2]
[379906531,1755436249832,-293.7943279,0.0002007,2]
[379906533,1755436249841,-510.5110197,0.0002007,2]
[379906535,1755436249851,-293.7943279,0.0002007,2]
[379906537,1755436249860,-168.0,0.00020089,2]
[379906539,1755436249870,-151.0,0.000201,3]
[379906541,1755436249879,-151.0,0.000201,4]
[379906543,1755436249889,-168.0,0.00020124,2]
[379906545,1755436249898,-168.0,0.00020149,2]
[379906547,1755436249908,-293.7943279,0.00020155,2]
[379906549,1755436249917,-293.7943279,0.00020155,2]
[379906551,1755436249926,-293.7943279,0.00020155,2]
[379906552,1755436249935,-587.5382724,0.00020155,2]
[379906554,1755436249944,-272.416799,0.00020173,2]
[379906556,1755436249953,-272.416799,0.00020173,2]
[379906558,1755436249962,-151.0,0.00020173,2]
[379906560,1755436249971,-632.413087,0.00020187,2]
[379906562,1755436249980,-420.5,0.00020191,2]
[379906564,1755436249989,-12438.15916521,0.00020194,2]
[379906566,1755436249999,-151.0,0.000202,3]
[379906568,1755436250008,-151.0,0.000202,4]
[379906570,1755436250017,-449.23,0.0002026,2]
[379906572,1755436250027,-5000.0,0.00020261,2]
[379906574,1755436250036,-1500.0,0.00020268,2]
[379906576,1755436250046,-1500.0,0.00020268,2]
[379906578,1755436250055,-202.95,0.00020273,2]
[379906580,1755436250064,-480.0,0.00020273,2]
[379906582,1755436250074,-480.0,0.00020273,2]
[379906584,1755436250082,-409.70384512,0.00020273,2]
[379906586,1755436250091,-480.0,0.00020273,2]
[379906588,1755436250101,-480.0,0.00020273,2]
[379906590,1755436250110,-378.28666909,0.00020273,2]
[379906592,1755436250119,-480.0,0.00020273,2]
[379906594,1755436250128,-480.0,0.00020273,2]
[379906596,1755436250137,-480.0,0.00020273,2]
[379906598,1755436250147,-984.7,0.00020273,2]
[379906600,1755436250157,-480.0,0.00020273,2]
[379906602,1755436250167,-1005.97,0.00020273,2]
[379906604,1755436250176,-480.0,0.00020273,2]
[379906606,1755436250185,-480.0,0.00020273,2]
[379906608,1755436250195,-480.0,0.00020273,2]
[379906610,1755436250204,-480.0,0.00020273,2]
[379906612,1755436250213,-480.0,0.00020273,2]
[379906614,1755436250223,-480.0,0.00020273,2]
[379906616,1755436250232,-662.17,0.00020273,2]
[379906618,1755436250242,-480.0,0.00020273,2]
[379906620,1755436250251,-480.0,0.00020273,2]
[379906622,1755436250261,-480.0,0.00020273,2]
[379906624,1755436250270,-596.96,0.00020273,2]
[379906626,1755436250279,-480.0,0.00020273,2]
[379906628,1755436250288,-480.0,0.00020273,2]
[379906630,1755436250297,-983.15,0.00020273,2]
[379906632,1755436250306,-491.47,0.00020273,2]
[379906634,1755436250316,-480.0,0.00020273,2]
[379906636,1755436250326,-501.48,0.00020273,2]
[379906638,1755436250336,-1161.97,0.00020273,2]
[379906640,1755436250345,-480.0,0.00020273,2]
[379906642,1755436250355,-690.15,0.00020273,2]
[379906644,1755436250364,-480.0,0.00020273,2]
[379906646,1755436250374,-480.0,0.00020273,2]
[379906648,1755436250386,-480.0,0.00020273,2]
[379906650,1755436250395,-1159.43,0.00020273,2]
[379906652,1755436250405,-480.0,0.00020273,2]
[379906654,1755436250414,-480.0,0.00020273,2]
[379906656,1755436250423,-107.90597174,0.00020273,2]
[379906693,1755436250760,-372.09402826,0.00020273,2]
[379906695,1755436250773,-887.18,0.00020273,2]
[379906698,1755436250785,-420.0,0.00020273,2]
[379906700,1755436250797,-480.0,0.00020273,2]
[379906702,1755436250809,-502.75,0.00020273,2]
[379906705,1755436250824,-480.0,0.00020273,2]
[379906707,1755436250836,-5704.58,0.00020273,2]
[379906709,1755436250849,-1508.9,0.00020273,2]
[379906712,1755436250862,-682.83,0.00020273,2]
[379906714,1755436250875,-480.0,0.00020273,2]
[379906716,1755436250887,-480.0,0.00020273,2]
[379906719,1755436250899,-460.0,0.00020273,2]
[379906721,1755436250912,-480.0,0.00020273,2]
[379906723,1755436250925,-480.0,0.00020273,2]
[379906726,1755436250937,-180.15222722,0.00020273,2]
[379906728,1755436250951,-483.57777278,0.00020273,2]
[379906731,1755436250964,-440.0,0.00020273,2]
[379906733,1755436250976,-480.0,0.00020273,2]
[379906735,1755436250989,-532.05,0.00020273,2]
[379906738,1755436251001,-1164.98,0.00020273,2]
[379906740,1755436251013,-768.52,0.00020273,2]
[379906742,1755436251025,-480.0,0.00020273,2]
[379906745,1755436251039,-480.0,0.00020273,2]
[379906747,1755436251052,-2615.02,0.00020273,2]
[379906749,1755436251064,-870.14,0.00020273,2]
[379906752,1755436251076,-108.99608041,0.00020273,2]
[379906754,1755436251092,-483.2568244,0.00020273,2]
[379906757,1755436251107,-2670.31152641,0.00020273,2]
[379906760,1755436251121,-326.75342642,0.00020273,2]
[379906763,1755436251141,-706.17,0.00019726,2]
[379906765,1755436251151,-192.42071365,0.00020273,2]
[379906767,1755436251162,-662.46728706,0.00020273,2]
[379906769,1755436251174,-1430.69635413,0.00020273,2]
[379906771,1755436251185,-764.51,0.00020273,2]
[379906773,1755436251196,-1738.98778752,0.00020273,2]
[379906775,1755436251206,-480.0,0.00020273,2]
[379906778,1755436251215,-480.0,0.00020273,2]
[379906780,1755436251225,-480.0,0.00020273,2]
[379906782,1755436251234,-480.0,0.00020273,2]
[379906784,1755436251243,-480.0,0.00020273,2]
[379906786,1755436251252,-480.0,0.00020273,2]
[379906788,1755436251262,-480.0,0.00020273,2]
[379906790,1755436251272,-1255.06,0.00020273,2]
[379906792,1755436251281,-2014.13,0.00020273,2]
[379906794,1755436251291,-1669.72,0.00020273,2]
[379906796,1755436251300,-742.79,0.00020273,2]
[379906798,1755436251309,-984.43,0.00020273,2]
[379906800,1755436251319,-2465.9519444,0.00020273,2]
[379907025,1755436253471,-250.0,0.00019178,2]
[379907385,1755436337504,-480.0,0.00018644,2]
[379907386,1755436346885,-169.09952775,0.00018644,2]
[379907387,1755436349438,-224.62131133,0.00018644,2]
[379907388,1755436351547,-263.64364614,0.00018644,2]
[379907389,1755436353050,-347.43249248,0.00018644,2]
[379907390,1755436355092,-317.21816095,0.00018644,2]
[379907391,1755436357187,-254.62464828,0.00018644,2]
[379907392,1755436359342,-166.75668753,0.00018644,2]
[379907393,1755436360902,-298.64208696,0.00018644,2]
[379907394,1755436362573,-207.0137164,0.00018644,2]
[379907395,1755436365326,-168.95489268,0.00018644,2]
[379907396,1755436367266,-151.0,0.00018644,2]
[379907397,1755436372115,-252.51949924,0.00018644,2]
[379907398,1755436373526,-164.87774405,0.00018644,2]
[379907399,1755436375229,-226.28375376,0.00018644,2]
[379907400,1755436377221,-162.54304105,0.00018544,2]
[379907401,1755436377248,-72.08799634,0.00018644,2]
[379907402,1755436379177,-158.46569008,0.00018644,2]
[379907403,1755436380749,-281.47382502,0.00018644,2]
[379907404,1755436465883,609.968741,0.00013699,2]
[379907405,1755436484669,152.0,0.00028767,120]
[379907407,1755436539766,9194.47140488,0.00018,2]
[379907408,1755436539788,227611.89129959,0.00018,2]
[379907409,1755436562773,-445.85275302,0.00018359,2]
[379907410,1755436568254,-420.78062588,0.00018359,2]
[379907411,1755436574372,-221.61056324,0.00018359,2]
[379907412,1755436575934,-188.86057369,0.00018359,2]
[379907413,1755436578721,-189.11701146,0.00018359,2]
[379907414,1755436580196,-281.51247247,0.00018052,2]
[379907415,1755436582356,-180.40247267,0.00018052,2]
[379907416,1755436584628,-151.0,0.00018052,2]
[379907417,1755436586084,-314.0673106,0.00018052,2]
[379907418,1755436745034,5000.0,0.00018001,2]
[379907419,1755436763450,5000.0,0.00018001,2]
[379907425,1755436780393,5000.0,0.00018001,2]
[379907426,1755436797175,5000.0,0.00018001,2]
[379907427,1755436815321,5000.0,0.00018001,2]
[379907428,1755436834465,5000.0,0.00018001,2]
[379907429,1755436843360,5000.0,0.00018001,2]
[379907430,1755436853009,5000.0,0.00018001,2]
[379907431,1755436864364,5000.0,0.00018001,2]
[379907432,1755436873923,5000.0,0.00018001,2]
[379907433,1755436883798,900.89329063,0.00018001,2]
[379907434,1755436893667,5000.0,0.00018001,2]
[379907435,1755436911132,5000.0,0.00018001,2]
[379907436,1755436929006,5000.0,0.00018001,2]
[379907437,1755436942071,199.0,0.00017932,2]
[379907438,1755436946537,5000.0,0.00018001,2]
[379907439,1755436964421,5000.0,0.00018001,2]
[379907440,1755436982121,1498.41164171,0.00018001,2]
[379907441,1755436993716,464.0,0.00018,2]
[379907444,1755437119006,750.847918,0.00017729,2]
[379907464,1755437198840,269.4312035,0.00017899,2]
[379907466,1755437201934,1076.6470892,0.00017899,2]
[379907486,1755437220628,604.66724247,0.00017899,2]
[379907492,1755437266499,55917.1085044,0.00018,2]
[379907493,1755437270628,4989.07490936,0.00018,2]
[379907496,1755437310602,11824.95667421,0.00017,2]
[379907497,1755437313250,14664.89511334,0.00018,2]
[379907508,1755437355139,-140.33459486,0.00018052,2]
[379907509,1755437355160,-79.69745626,0.00018443,2]
[379907510,1755437370194,1000.0,0.00017643,2]
[379907514,1755437403599,596.146999,0.00013699,2]
[379907528,1755437435867,125892.7016932,0.00017642,2]
[379907534,1755437436394,-71.45699856,0.00018443,2]
[379907535,1755437436406,-2263.67829969,0.00018543,2]
[379907537,1755437436415,-2765.05684728,0.00018543,2]
[379907538,1755437436427,-266.91760752,0.00018543,2]
[379907540,1755437436436,-86.87632757,0.0001864,2]
[379907561,1755437437878,-213.12367243,0.0001864,2]
[379907563,1755437437887,-300.0,0.0001864,2]
[379907565,1755437437897,-1200.0,0.0001864,2]
[379907567,1755437437906,-1134.0,0.00018641,2]
[379907569,1755437437916,-277.38518729,0.00018641,2]
[379907571,1755437437925,-216.22630738,0.00018641,2]
[379907573,1755437437937,-283.77369262,0.00018641,2]
[379907575,1755437437946,-174.83247957,0.00018641,2]
[379907577,1755437437956,-500.0,0.00018641,2]
[379907579,1755437437965,-584.49664421,0.00018641,2]
[379907581,1755437437974,-500.0,0.00018641,2]
[379907583,1755437437983,-500.0,0.00018641,2]
[379907585,1755437437992,-500.0,0.00018641,2]
[379907587,1755437438001,-500.0,0.00018641,2]
[379907589,1755437438010,-500.0,0.00018641,2]
[379907591,1755437438019,-283.81529748,0.00018641,2]
[379907593,1755437438029,-500.0,0.00018641,2]
[379907595,1755437438038,-610.11010924,0.00018641,2]
[379907596,1755437438048,-500.0,0.00018641,2]
[379907598,1755437438058,-500.0,0.00018641,2]
[379907600,1755437438067,-480.0,0.00018642,2]
[379907602,1755437438076,-480.0,0.00018642,2]
[379907604,1755437438085,-480.0,0.00018642,2]
[379907606,1755437438095,-7.01106859,0.00018642,2]
[379907609,1755437438108,-1311.92893141,0.00018642,2]
[379907610,1755437438117,-236.53082652,0.00018642,2]
[379907613,1755437438128,-243.46917348,0.00018642,2]
[379907615,1755437438137,-44.23816573,0.00018642,2]
[379907617,1755437438153,-435.76183427,0.00018642,2]
[379907619,1755437438161,-300.35907495,0.00018642,2]
[379907622,1755437438179,-179.64092505,0.00018642,2]
[379907624,1755437438189,-178.29502211,0.00018642,2]
[379907626,1755437438201,-301.70497789,0.00018642,2]
[379907628,1755437438210,-480.0,0.00018642,2]
[379907630,1755437438220,-62.84473051,0.00018642,2]
[379907976,1755437443002,-293.00176164,0.00018642,2]
[379908036,1755437443543,-124.15350785,0.00018642,2]
[379908038,1755437443553,-480.0,0.00018642,2]
[379908040,1755437443562,-480.0,0.00018642,2]
[379908042,1755437443571,-480.0,0.00018642,2]
[379908043,1755437443580,-480.0,0.00018642,2]
[379908046,1755437443589,-70.68880858,0.00018643,2]
[379908323,1755437446246,-756.82,0.00018456,2]
[379909117,1755437540935,93247.7781158,0.00017611,2]
[379909119,1755437637337,5000.0,0.00018001,2]
[379909120,1755437647940,5000.0,0.00018001,2]
[379909121,1755437658187,5000.0,0.00018001,2]
[379909122,1755437669419,3173.82531187,0.00018001,2]
[379909123,1755437680294,4243.18,0.00018001,2]
[379909125,1755437825724,1000.0,0.00028767,120]
[379909131,1755438015597,839.8925303,0.00017563,2]
[379909133,1755438058789,10000.0,0.00017465,2]
[379909134,1755438221434,537.168487,0.00017429,2]
[379909135,1755438229200,195.58483818,0.00017553,2]
[379909136,1755438231418,782.33935272,0.00017553,2]
[379909137,1755438233207,1760.26354362,0.00017553,2]
[379909138,1755438235526,3129.35741088,0.00017553,2]
[379909139,1755438237411,570.44145706,0.00017723,2]
[379909140,1755438280409,179.78425889,0.00017253,2]
[379909141,1755438283947,1000.0,0.00017432,2]
[379909166,1755438415139,-151.15445482,0.00018103,2]
[379909167,1755438415160,-294.99923752,0.00018168,2]
[379909169,1755438425108,-262.42240712,0.00018168,2]
[379909170,1755438425129,-61.2850912,0.00018203,2]
[379909171,1755438506997,185.29952866,0.00017532,2]
[379909173,1755438535380,629.306532,0.00013699,2]
[379909174,1755438538068,-327.47945711,0.00018271,2]
[379909175,1755438540079,-251.60297646,0.00018271,2]
[379909177,1755438543154,-151.11129436,0.00018271,2]
[379909178,1755438544647,-246.90959975,0.00018271,2]
[379909179,1755438547243,-204.70744097,0.00018271,2]
[379909181,1755438566100,-1508.50750976,0.00018271,2]
[379909182,1755438566125,-242.69920255,0.00018333,2]
[379909183,1755438566149,-242.69920252,0.00018343,2]
[379909184,1755438566171,-242.69920252,0.00018353,2]
[379909185,1755438566192,-242.69920252,0.00018363,2]
[379909186,1755438566213,-242.69920252,0.00018373,2]
[379909187,1755438566233,-700.0,0.00018433,2]
[379909188,1755438566254,-1200.0,0.00018471,2]
[379909189,1755438566275,-300.0,0.00018471,2]
[379909190,1755438566296,-1200.0,0.00018472,2]
[379909191,1755438566317,-480.0,0.00018472,2]
[379909192,1755438566337,-20.06566733,0.00018472,2]
[379909247,1755438632393,-300.0,0.00018471,2]
[379909249,1755438632403,-195.0,0.00018471,2]
[379909251,1755438632412,-300.0,0.00018471,2]
[379909252,1755438632422,-300.0,0.00018471,2]
[379909253,1755438632431,-937.0,0.00018471,2]
[379909254,1755438632440,-445.91101771,0.00018472,2]
[379909255,1755438632450,-480.0,0.00018472,2]
[379909257,1755438632459,-480.0,0.00018472,2]
[379909259,1755438632469,-480.0,0.00018472,2]
[379909261,1755438632479,-1600.18,0.00018472,2]
[379909263,1755438632489,-480.0,0.00018472,2]
[379909265,1755438632498,-440.0,0.00018472,2]
[379909267,1755438632508,-171.6130032,0.00018472,2]
[379909270,1755438632519,-308.3869968,0.00018472,2]
[379909273,1755438632529,-18985.98575333,0.00018472,2]
[379909276,1755438632538,-198.20169972,0.00018473,2]
[379909279,1755438632547,-500.0,0.00018473,2]
[379909281,1755438632557,-500.0,0.00018473,2]
[379909282,1755438632567,-500.0,0.00018473,2]
[379909283,1755438632576,-152.82590364,0.00018473,2]
[379909284,1755438632585,-500.0,0.00018474,2]
[379909285,1755438632595,-480.0,0.00018474,2]
[379909286,1755438632605,-463.49471353,0.00018474,2]
[379909288,1755438632616,-462.31296369,0.00018474,2]
[379909289,1755438632626,-480.0,0.00018474,2]
[379909290,1755438632635,-480.0,0.00018474,2]
[379909291,1755438632644,-480.0,0.00018474,2]
[379909292,1755438632654,-480.0,0.00018474,2]
[379909293,1755438632664,-480.0,0.00018474,2]
[379909294,1755438632673,-480.0,0.00018474,2]
[379909295,1755438632683,-265.65386323,0.00018474,2]
[379909296,1755438632693,-480.0,0.00018474,2]
[379909297,1755438632703,-480.0,0.00018474,2]
[379909298,1755438632712,-440.0,0.00018474,2]
[379909299,1755438632721,-460.0,0.00018474,2]
[379909300,1755438632731,-1068.23,0.00018474,2]
[379909301,1755438632741,-480.0,0.00018474,2]
[379909302,1755438632752,-401.56368463,0.00018474,2]
[379909303,1755438632761,-480.0,0.00018474,2]
[379909304,1755438632771,-480.0,0.00018474,2]
[379909305,1755438632780,-480.0,0.00018474,2]
[379909306,1755438632790,-480.0,0.00018474,2]
[379909307,1755438632799,-480.0,0.00018474,2]
[379909308,1755438632809,-480.0,0.00018474,2]
[379909309,1755438632818,-480.0,0.00018474,2]
[379909310,1755438632827,-480.0,0.00018474,2]
[379909311,1755438632836,-480.0,0.00018474,2]
[379909312,1755438632845,-522.88,0.00018474,2]
[379909313,1755438632855,-480.0,0.00018474,2]
[379909314,1755438632867,-480.0,0.00018474,2]
[379909315,1755438632878,-480.0,0.00018474,2]
[379909316,1755438632888,-480.0,0.00018474,2]
[379909317,1755438632897,-480.0,0.00018474,2]
[379909318,1755438632907,-480.0,0.00018474,2]
[379909319,1755438632917,-480.0,0.00018474,2]
[379909320,1755438632926,-480.0,0.00018474,2]
[379909321,1755438632936,-480.0,0.00018474,2]
[379909322,1755438632945,-480.0,0.00018474,2]
[379909323,1755438632955,-480.0,0.00018474,2]
[379909324,1755438632965,-480.0,0.00018474,2]
[379909325,1755438632975,-480.0,0.00018474,2]
[379909326,1755438632984,-1223.2,0.00018474,2]
[379909327,1755438632995,-480.0,0.00018474,2]
[379909328,1755438633004,-1578.21,0.00018474,2]
[379909329,1755438633014,-480.0,0.00018474,2]
[379909330,1755438633023,-449.05442137,0.00018474,2]
[379909331,1755438638088,-600.0,0.00018433,2]
[379909332,1755438638098,-12.1834595,0.00018474,2]
[379909333,1755438638107,-480.0,0.00018474,2]
[379909334,1755438638116,-480.0,0.00018474,2]
[379909335,1755438638126,-480.0,0.00018474,2]
[379909336,1755438638135,-480.0,0.00018474,2]
[379909337,1755438638143,-480.0,0.00018474,2]
[379909338,1755438638153,-480.0,0.00018474,2]
[379909339,1755438638162,-1173.15,0.00018474,2]
[379909340,1755438638171,-446.2259437,0.00018474,2]
[379909341,1755438638180,-480.0,0.00018474,2]
[379909342,1755438638189,-480.0,0.00018474,2]
[379909343,1755438638198,-480.0,0.00018474,2]
[379909344,1755438638209,-480.0,0.00018474,2]
[379909345,1755438638218,-480.0,0.00018474,2]
[379909346,1755438638228,-480.0,0.00018474,2]
[379909347,1755438638237,-480.0,0.00018474,2]
[379909348,1755438638246,-480.0,0.00018474,2]
[379909349,1755438638256,-480.0,0.00018474,2]
[379909350,1755438638265,-480.0,0.00018474,2]
[379909351,1755438638274,-480.0,0.00018474,2]
[379909352,1755438638283,-480.0,0.00018474,2]
[379909353,1755438638292,-3387.28,0.00018474,2]
[379909354,1755438638303,-461.13500303,0.00018474,2]
[379909355,1755438638312,-559.3,0.00018474,2]
[379909356,1755438638321,-480.0,0.00018474,2]
[379909357,1755438638331,-480.0,0.00018474,2]
[379909358,1755438638341,-713.3,0.00018474,2]
[379909359,1755438638351,-480.0,0.00018474,2]
[379909360,1755438638361,-1758.30541905,0.000185,2]
[379909361,1755438638371,-1434.13259102,0.00018542,2]
[379909362,1755438638381,-1723.72,0.00018632,3]
[379909363,1755438638391,-861.86,0.00018632,3]
[379909364,1755438638400,-430.93,0.00018632,3]
[379909365,1755438638409,-215.46,0.00018633,3]
[379909366,1755438638419,-646.43,0.00018633,3]
[379909367,1755438638428,-480.0,0.00018638,2]
[379909368,1755438638438,-480.0,0.00018638,2]
[379909369,1755438638448,-480.0,0.00018638,2]
[379909370,1755438638457,-480.0,0.00018638,2]
[379909371,1755438638466,-480.0,0.00018638,2]
[379909372,1755438638475,-480.0,0.00018638,2]
[379909373,1755438638484,-480.0,0.00018638,2]
[379909374,1755438638493,-480.0,0.00018638,2]
[379909375,1755438638502,-480.0,0.00018638,2]
[379909377,1755438638511,-480.0,0.00018638,2]
[379909378,1755438638521,-618.39,0.00018638,2]
[379909379,1755438638530,-1003.31,0.00018638,2]
[379909380,1755438638539,-509.86,0.00018638,2]
[379909381,1755438638549,-480.0,0.00018638,2]
[379909382,1755438638558,-460.0,0.00018638,2]
[379909384,1755438638567,-480.0,0.00018638,2]
[379909385,1755438638576,-480.0,0.00018638,2]
[379909386,1755438638586,-480.0,0.00018638,2]
[379909387,1755438638596,-480.0,0.00018638,2]
[379909388,1755438638605,-480.0,0.00018638,2]
[379909389,1755438638614,-480.0,0.00018638,2]
[379909390,1755438638624,-480.0,0.00018638,2]
[379909391,1755438638633,-440.87144121,0.00018638,2]
[379909393,1755438638643,-175.84362596,0.00018638,2]
[379909394,1755438638652,-480.0,0.00018638,2]
[379909395,1755438638662,-500.0,0.00018638,2]
[379909396,1755438638673,-480.0,0.00018638,2]
[379909397,1755438638682,-480.0,0.00018638,2]
[379909399,1755438638691,-480.0,0.00018638,2]
[379909400,1755438638700,-480.0,0.00018638,2]
[379909401,1755438638709,-249.60951735,0.00018638,2]
[379909402,1755438638719,-480.0,0.00018638,2]
[379909403,1755438638727,-480.0,0.00018638,2]
[379909404,1755438638737,-480.0,0.00018638,2]
[379909405,1755438638746,-480.0,0.00018638,2]
[379909406,1755438638756,-480.0,0.00018638,2]
[379909407,1755438638765,-480.0,0.00018638,2]
[379909408,1755438638774,-480.0,0.00018638,2]
[379909409,1755438638783,-713.38,0.00018638,2]
[379909410,1755438638792,-480.0,0.00018638,2]
[379909411,1755438638801,-480.0,0.00018638,2]
[379909412,1755438638811,-480.0,0.00018638,2]
[379909413,1755438638819,-480.0,0.00018638,2]
[379909414,1755438638828,-528.18,0.00018638,2]
[379909415,1755438638838,-480.0,0.00018638,2]
[379909416,1755438638847,-480.0,0.00018638,2]
[379909417,1755438638856,-480.0,0.00018638,2]
[379909418,1755438638866,-480.0,0.00018638,2]
[379909419,1755438638876,-480.0,0.00018638,2]
[379909420,1755438638889,-480.0,0.00018638,2]
[379909421,1755438638898,-711.93,0.00018638,2]
[379909422,1755438638907,-480.0,0.00018638,2]
[379909423,1755438638917,-480.0,0.00018638,2]
[379909424,1755438638926,-480.0,0.00018638,2]
[379909425,1755438638935,-2411.44,0.00018638,2]
[379909426,1755438638944,-480.0,0.00018638,2]
[379909427,1755438638954,-460.0,0.00018638,2]
[379909428,1755438638964,-480.0,0.00018638,2]
[379909429,1755438638973,-537.17317756,0.00018638,2]
[379909430,1755438638983,-480.0,0.00018638,2]
[379909431,1755438638992,-480.0,0.00018638,2]
[379909432,1755438639002,-480.0,0.00018638,2]
[379909433,1755438639011,-480.0,0.00018638,2]
[379909434,1755438639022,-480.0,0.00018638,2]
[379909435,1755438639031,-480.0,0.00018638,2]
[379909436,1755438639040,-480.0,0.00018638,2]
[379909437,1755438639050,-480.0,0.00018638,2]
[379909438,1755438639059,-480.0,0.00018638,2]
[379909439,1755438639068,-480.0,0.00018638,2]
[379909440,1755438639077,-224.96501802,0.00018638,2]
[379909441,1755438639087,-419.93433267,0.00018638,2]
[379909442,1755438639096,-527.43,0.00018638,2]
[379909443,1755438639105,-480.0,0.00018638,2]
[379909444,1755438639114,-480.0,0.00018638,2]
[379909445,1755438639124,-480.0,0.00018638,2]
[379909446,1755438639134,-480.0,0.00018638,2]
[379909447,1755438639144,-480.0,0.00018638,2]
[379909448,1755438639153,-480.0,0.00018638,2]
[379909449,1755438639164,-480.0,0.00018638,2]
[379909450,1755438639174,-461.63385018,0.00018638,2]
[379909451,1755438639183,-480.0,0.00018638,2]
[379909452,1755438639193,-480.0,0.00018638,2]
[379909453,1755438639202,-367.87349595,0.00018638,2]
[379909454,1755438639212,-712.58,0.00018638,2]
[379909455,1755438639221,-480.0,0.00018638,2]
[379909456,1755438639230,-480.0,0.00018638,2]
[379909457,1755438639241,-480.0,0.00018638,2]